fUSD/lending_fUSD_20250226
["ID","MTS","AMOUNT","RATE_DAILY","PERIOD"]
[354570417,1740577875800,-538.92,0.00039725,14]
[354570418,1740577875809,-595.5,0.00039725,14]
[354570419,1740577875818,-1217.13,0.00039725,14]
[354570420,1740577875829,-2652.63,0.00039725,14]
[354570421,1740577875838,-2987.07,0.00039725,14]
[354570422,1740577875848,-577.66,0.00039725,14]
[354570423,1740577875857,-500.0,0.00039725,14]
[354570424,1740577875867,-598.47,0.00039725,14]
[354570425,1740577875877,-3341.12,0.00039725,14]
[354570426,1740577875889,-500.0,0.00039725,14]
[354570427,1740577875899,-500.0,0.00039725,14]
[354570428,1740577875908,-500.0,0.00039725,14]
[354570429,1740577875917,-500.0,0.00039725,14]
[354570430,1740577875927,-500.0,0.00039725,14]
[354570431,1740577875937,-2065.94,0.00039725,14]
[354570432,1740577875946,-797.66,0.00039725,14]
[354570433,1740577875957,-1189.81,0.00039725,14]
[354570434,1740577875968,-566.37,0.00039725,14]
[354570435,1740577875977,-500.0,0.00039725,14]
[354570436,1740577875987,-1046.83,0.00039725,14]
[354570437,1740577875997,-500.0,0.00039725,14]
[354570438,1740577876006,-578.47,0.00039725,14]
[354570439,1740577876016,-500.0,0.00039726,14]
[354570440,1740577876026,-500.0,0.00039726,14]
[354570441,1740577876035,-565.01,0.00039726,14]
[354570442,1740577876045,-648.16,0.00039726,14]
[354570443,1740577876054,-831.81,0.00039726,14]
[354570444,1740577876063,-500.0,0.00039726,14]
[354570445,1740577876073,-1013.83,0.00039726,14]
[354570446,1740577876082,-500.0,0.00039726,14]
[354570447,1740577876092,-500.0,0.00039726,14]
[354570448,1740577876102,-950.36,0.00039726,14]
[354570449,1740577876111,-732.41,0.00039726,14]
[354570450,1740577876120,-950.01,0.00039726,14]
[354570451,1740577876129,-500.0,0.00039726,14]
[354570452,1740577876143,-924.52,0.00039726,14]
[354570453,1740577876152,-632.95,0.00039726,14]
[354570454,1740577876161,-500.0,0.00039726,14]
[354570455,1740577876170,-766.77,0.00039726,14]
[354570456,1740577876180,-500.0,0.00039726,14]
[354570457,1740577876190,-1251.19,0.00039726,14]
[354570458,1740577876199,-500.0,0.00039726,14]
[354570459,1740577876209,-3553.83,0.00039726,14]
[354570460,1740577876218,-1452.5,0.00039726,14]
[354570461,1740577876228,-3541.32,0.00039726,14]
[354570462,1740577876237,-3686.64,0.00039726,14]
[354570463,1740577876246,-1345.95,0.00039726,14]
[354570464,1740577876256,-510.79,0.00039726,14]
[354570465,1740577876265,-244.10437378,0.00039753,2]
[354570466,1740577876275,-391.5445483,0.00039765,2]
[354570467,1740577876284,-500.0,0.00039773,5]
[354570468,1740577876294,-151.909756,0.00039773,5]
[354570469,1740577876304,-150.90723953,0.00039773,5]
[354570470,1740577876313,-156.54024746,0.00039773,5]
[354570471,1740577876323,-500.0,0.00039773,5]
[354570472,1740577876333,-500.0,0.00039773,5]
[354570473,1740577876345,-500.0,0.00039773,5]
[354570474,1740577876355,-1400.0,0.000398,14]
[354570475,1740577876364,-8597.44844447,0.0003987,2]
[354570476,1740577876374,-4656.35266776,0.00039899,15]
[354570477,1740577876386,-200.0,0.000399,14]
[354570478,1740577876396,-2000.0,0.0003991,4]
[354570479,1740577876405,-150.0,0.00039912,2]
[354570480,1740577876415,-2110.0,0.00039917,2]
[354570481,1740577876425,-2000.0,0.00039919,4]
[354570482,1740577876435,-2000.0,0.00039928,4]
[354570483,1740577876444,-150.0,0.00039935,2]
[354570484,1740577876454,-2000.0,0.00039937,4]
[354570485,1740577876463,-2000.0,0.00039946,4]
[354570486,1740577876473,-2000.0,0.00039955,4]
[354570487,1740577876483,-2000.0,0.00039964,4]
[354570488,1740577876492,-500.0,0.00039973,5]
[354570489,1740577876501,-500.0,0.00039973,5]
[354570490,1740577876511,-2000.0,0.00039973,4]
[354570491,1740577876522,-2000.0,0.00039982,4]
[354570492,1740577876532,-2000.0,0.00039991,4]
[354570493,1740577876542,-500.0,0.00039997,14]
[354570494,1740577876551,-500.0,0.00039997,14]
[354570495,1740577876561,-760.91,0.00039997,14]
[354570496,1740577876570,-958.67,0.00039997,14]
[354570497,1740577876580,-500.0,0.00039997,14]
[354570498,1740577876589,-928.51,0.00039997,14]
[354570499,1740577876598,-500.0,0.00039997,14]
[354570500,1740577876607,-664.15,0.00039997,14]
[354570501,1740577876617,-500.0,0.00039997,14]
[354570502,1740577876626,-500.0,0.00039997,14]
[354570503,1740577876637,-500.0,0.00039997,14]
[354570504,1740577876646,-500.0,0.00039997,14]
[354570505,1740577876655,-500.0,0.00039997,14]
[354570506,1740577876665,-685.06,0.00039997,14]
[354570507,1740577876674,-1165.71,0.00039997,14]
[354570508,1740577876683,-500.0,0.00039997,14]
[354570509,1740577876692,-860.05,0.00039997,14]
[354570510,1740577876701,-500.0,0.00039997,14]
[354570511,1740577876710,-1547.06,0.00039997,14]
[354570512,1740577876720,-554.12,0.00039997,14]
[354570513,1740577876728,-500.0,0.00039997,14]
[354570514,1740577876738,-500.0,0.00039997,14]
[354570515,1740577876748,-500.0,0.00039997,14]
[354570516,1740577876757,-570.0,0.00039997,14]
[354570517,1740577876766,-1158.16,0.00039997,14]
[354570518,1740577876775,-626.17,0.00039997,14]
[354570519,1740577876791,-952.68,0.00039997,14]
[354570520,1740577876801,-508.1,0.00039997,14]
[354570521,1740577876811,-968.8,0.00039997,14]
[354570522,1740577876821,-2419.29,0.00039997,14]
[354570523,1740577876831,-439.4621217,0.00039997,14]
[354570524,1740577876840,-1719.14,0.00039997,14]
[354570525,1740577876849,-500.0,0.00039997,14]
[354570526,1740577876859,-682.591872,0.00039997,14]
[354570527,1740577876870,-500.0,0.00039997,14]
[354570528,1740577876881,-500.0,0.00039997,14]
[354570529,1740577876894,-500.0,0.00039997,14]
[354570530,1740577876903,-1795.0,0.00039997,14]
[354570531,1740577876913,-500.0,0.00039997,14]
[354570532,1740577876922,-1645.33012,0.00039997,14]
[354570533,1740577876932,-714.11,0.00039997,14]
[354570534,1740577876943,-1111.56,0.00039997,14]
[354570535,1740577876952,-500.0,0.00039997,14]
[354570536,1740577876962,-1878.05,0.00039997,14]
[354570537,1740577876971,-500.0,0.00039997,14]
[354570538,1740577876982,-667.63,0.00039997,14]
[354570539,1740577876991,-500.0,0.00039997,14]
[354570540,1740577877001,-2722.32,0.00039997,14]
[354570541,1740577877011,-1927.34,0.00039997,14]
[354570542,1740577877021,-7145.37,0.00039997,14]
[354570543,1740577877030,-1008.2,0.00039997,14]
[354570544,1740577877041,-650.25,0.00039997,14]
[354570545,1740577877050,-2009.61,0.00039997,14]
[354570546,1740577877060,-2014.66,0.00039997,14]
[354570547,1740577877069,-3098.29,0.00039997,14]
[354570548,1740577877078,-732.93,0.00039997,14]
[354570549,1740577877087,-938.98,0.00039997,14]
[354570550,1740577877097,-1479.36,0.00039997,14]
[354570551,1740577877106,-3568.1,0.00039997,14]
[354570552,1740577877116,-669.26,0.00039997,14]
[354570553,1740577877127,-3257.25,0.00039997,14]
[354570554,1740577877137,-645.47,0.00039997,14]
[354570555,1740577877146,-3076.86,0.00039997,14]
[354570556,1740577877155,-1253.24,0.00039997,14]
[354570557,1740577877164,-2384.03,0.00039997,14]
[354570558,1740577877175,-500.0,0.00039997,14]
[354570559,1740577877184,-500.0,0.00039997,14]
[354570560,1740577877193,-1151.84,0.00039997,14]
[354570561,1740577877203,-1460.66,0.00039997,14]
[354570562,1740577877213,-6184.91,0.00039997,14]
[354570563,1740577877223,-500.0,0.00039997,14]
[354570564,1740577877232,-2808.99,0.00039997,14]
[354570565,1740577877242,-771.66,0.00039997,14]
[354570566,1740577877251,-3678.19,0.00039997,14]
[354570567,1740577877261,-827.66,0.00039997,14]
[354570568,1740577877271,-500.0,0.00039997,14]
[354570569,1740577877281,-1437.84,0.00039997,14]
[354570570,1740577877290,-5109.15,0.00039997,14]
[354570571,1740577877300,-1209.32,0.00039997,14]
[354570572,1740577877309,-500.0,0.00039997,14]
[354570573,1740577877319,-2632.15,0.00039997,14]
[354570574,1740577877329,-500.0,0.00039997,14]
[354570575,1740577877339,-10651.32,0.00039997,14]
[354570576,1740577877349,-839.0,0.00039997,14]
[354570577,1740577877359,-500.0,0.00039997,14]
[354570578,1740577877369,-846.37,0.00039997,14]
[354570579,1740577877379,-700.95,0.00039997,14]
[354570580,1740577877390,-908.08,0.00039997,14]
[354570581,1740577877400,-3314.37,0.00039997,14]
[354570582,1740577877410,-500.0,0.00039997,14]
[354570583,1740577877419,-810.55,0.00039997,14]
[354570584,1740577877430,-684.23,0.00039997,14]
[354570585,1740577877439,-758.03,0.00039997,14]
[354570586,1740577877450,-1616.56,0.00039997,14]
[354570587,1740577877460,-1561.92,0.00039997,14]
[354570588,1740577877470,-1729.62,0.00039997,14]
[354570589,1740577877482,-4702.59,0.00039997,14]
[354570590,1740577877493,-548.15,0.00039997,14]
[354570591,1740577877503,-718.01,0.00039997,14]
[354570592,1740577877513,-500.0,0.00039997,14]
[354570593,1740577877523,-564.41,0.00039997,14]
[354570594,1740577877533,-500.0,0.00039997,14]
[354570595,1740577877543,-658.16,0.00039997,14]
[354570596,1740577877552,-1453.01,0.00039997,14]
[354570597,1740577877562,-4330.92,0.00039997,14]
[354570598,1740577877571,-1268.8,0.00039997,14]
[354570599,1740577877580,-1276.19,0.00039997,14]
[354570600,1740577877590,-2279.27,0.00039997,14]
[354570601,1740577877601,-1730.63,0.00039997,14]
[354570602,1740577877611,-500.0,0.00039997,14]
[354570603,1740577877621,-715.74,0.00039997,14]
[354570604,1740577877630,-500.0,0.00039997,14]
[354570605,1740577877641,-3971.48,0.00039997,14]
[354570606,1740577877650,-500.0,0.00039997,14]
[354570607,1740577877660,-1278.34,0.00039997,14]
[354570608,1740577877669,-500.0,0.00039997,14]
[354570609,1740577877679,-500.0,0.00039997,14]
[354570610,1740577877688,-2071.79,0.00039997,14]
[354570611,1740577877698,-4626.64,0.00039997,14]
[354570612,1740577877707,-539.27,0.00039998,14]
[354570613,1740577877717,-500.0,0.00039998,14]
[354570614,1740577877727,-500.0,0.00039998,14]
[354570615,1740577877737,-1417.36,0.00039998,14]
[354570616,1740577877747,-500.0,0.00039998,14]
[354570617,1740577877756,-500.0,0.00039998,14]
[354570618,1740577877767,-946.27,0.00039998,14]
[354570619,1740577877778,-840.06,0.00039998,14]
[354570620,1740577877788,-500.0,0.00039998,14]
[354570621,1740577877800,-583.26,0.00039998,14]
[354570622,1740577877810,-500.0,0.00039998,14]
[354570623,1740577877820,-500.0,0.00039998,14]
[354570624,1740577877831,-500.0,0.00039998,14]
[354570625,1740577877841,-550.08,0.00039998,14]
[354570626,1740577877851,-801.18,0.00039998,14]
[354570627,1740577877861,-500.0,0.00039998,14]
[354570628,1740577877872,-1415.22,0.00039998,14]
[354570629,1740577877882,-1532.81,0.00039998,14]
[354570630,1740577877894,-636.61,0.00039998,14]
[354570631,1740577877903,-500.0,0.00039998,14]
[354570632,1740577877913,-500.0,0.00039998,14]
[354570633,1740577877922,-500.0,0.00039998,14]
[354570634,1740577877931,-500.0,0.00039998,14]
[354570635,1740577877941,-500.0,0.00039998,14]
[354570636,1740577877950,-500.0,0.00039998,14]
[354570637,1740577877960,-500.0,0.00039998,14]
[354570638,1740577877970,-500.0,0.00039998,14]
[354570639,1740577877979,-772.94,0.00039998,14]
[354570640,1740577877989,-500.0,0.00039998,14]
[354570641,1740577877999,-1093.46,0.00039998,14]
[354570642,1740577878008,-500.0,0.00039998,14]
[354570643,1740577878018,-1033.48,0.00039998,14]
[354570644,1740577878028,-500.0,0.00039998,14]
[354570645,1740577878037,-701.37,0.00039998,14]
[354570646,1740577878048,-521.01762992,0.00039998,14]
[354570647,1740577878057,-596.2,0.00039998,14]
[354570648,1740577878067,-543.33,0.00039998,14]
[354570649,1740577878077,-500.0,0.00039998,14]
[354570650,1740577878087,-500.0,0.00039998,14]
[354570651,1740577878097,-913.08,0.00039998,14]
[354570652,1740577878107,-500.0,0.00039998,14]
[354570653,1740577878117,-500.0,0.00039998,14]
[354570654,1740577878127,-495.69857793,0.00039998,14]
[354570655,1740577878137,-626.21,0.00039998,14]
[354570656,1740577878148,-1002.67,0.00039998,14]
[354570657,1740577878159,-500.0,0.00039998,14]
[354570658,1740577878169,-500.0,0.00039998,14]
[354570659,1740577878179,-1109.77,0.00039998,14]
[354570660,1740577878189,-500.0,0.00039998,14]
[354570661,1740577878199,-500.0,0.00039998,14]
[354570662,1740577878209,-934.62,0.00039998,14]
[354570663,1740577878219,-855.27,0.00039998,14]
[354570664,1740577878229,-500.0,0.00039998,14]
[354570665,1740577878238,-1712.91,0.00039998,14]
[354570666,1740577878248,-750.53,0.00039998,14]
[354570667,1740577878257,-1012.46,0.00039998,14]
[354570668,1740577878267,-500.0,0.00039998,14]
[354570669,1740577878277,-1563.92,0.00039998,14]
[354570670,1740577878287,-1335.37,0.00039998,14]
[354570671,1740577878297,-943.3,0.00039998,14]
[354570672,1740577878306,-577.65,0.00039998,14]
[354570673,1740577878316,-939.4,0.00039998,14]
[354570674,1740577878325,-355.74500216,0.00039998,14]
[354570675,1740577878335,-1267.61,0.00039998,14]
[354570676,1740577878344,-500.0,0.00039998,14]
[354570677,1740577878354,-578.32,0.00039998,14]
[354570678,1740577878364,-676.6,0.00039998,14]
[354570679,1740577878374,-500.0,0.00039998,14]
[354570680,1740577878384,-904.12,0.00039998,14]
[354570681,1740577878395,-500.0,0.00039998,14]
[354570682,1740577878404,-909.27,0.00039998,14]
[354570683,1740577878414,-500.0,0.00039998,14]
[354570684,1740577878424,-679.06,0.00039998,14]
[354570685,1740577878434,-547.17,0.00039998,14]
[354570686,1740577878444,-500.0,0.00039998,14]
[354570687,1740577878454,-1198.5,0.00039998,14]
[354570688,1740577878464,-727.9,0.00039998,14]
[354570689,1740577878473,-843.37,0.00039998,14]
[354570690,1740577878483,-1167.08,0.00039998,14]
[354570691,1740577878493,-608.61,0.00039998,14]
[354570692,1740577878502,-738.4,0.00039998,14]
[354570693,1740577878512,-1475.91,0.00039998,14]
[354570694,1740577878523,-1120.02,0.00039998,14]
[354570695,1740577878532,-2196.09,0.00039998,14]
[354570696,1740577878542,-1993.32,0.00039998,14]
[354570697,1740577878552,-1079.47,0.00039998,14]
[354570698,1740577878561,-589.93,0.00039998,14]
[354570699,1740577878571,-783.92,0.00039998,14]
[354570700,1740577878580,-1902.54,0.00039998,14]
[354570701,1740577878590,-500.0,0.00039998,14]
[354570702,1740577878599,-699.89,0.00039998,14]
[354570703,1740577878609,-500.0,0.00039998,14]
[354570704,1740577878618,-922.8,0.00039998,14]
[354570705,1740577878628,-500.0,0.00039998,14]
[354570706,1740577878638,-500.0,0.00039998,14]
[354570707,1740577878648,-500.0,0.00039998,14]
[354570708,1740577878657,-500.0,0.00039998,14]
[354570709,1740577878667,-500.62,0.00039998,14]
[354570710,1740577878676,-500.0,0.00039998,14]
[354570711,1740577878685,-500.0,0.00039998,14]
[354570712,1740577878696,-894.7,0.00039998,14]
[354570713,1740577878705,-500.0,0.00039998,14]
[354570714,1740577878715,-547.27,0.00039998,14]
[354570715,1740577878725,-500.0,0.00039998,14]
[354570716,1740577878735,-517.79,0.00039998,14]
[354570717,1740577878745,-649.48,0.00039998,14]
[354570718,1740577878756,-992.29,0.00039998,14]
[354570719,1740577878766,-1024.53,0.00039998,14]
[354570720,1740577878776,-1530.37,0.00039998,14]
[354570721,1740577878787,-1992.53,0.00039998,14]
[354570722,1740577878801,-500.0,0.00039998,14]
[354570723,1740577878811,-837.94,0.00039998,14]
[354570724,1740577878823,-1206.81,0.00039998,14]
[354570725,1740577878833,-996.74,0.00039998,14]
[354570726,1740577878843,-1716.42,0.00039998,14]
[354570727,1740577878854,-500.0,0.00039998,14]
[354570728,1740577878864,-802.0,0.00039998,14]
[354570729,1740577878879,-1083.7,0.00039998,14]
[354570730,1740577878890,-500.0,0.00039998,14]
[354570731,1740577878901,-500.0,0.00039998,14]
[354570732,1740577878911,-1427.01,0.00039998,14]
[354570733,1740577878923,-1824.1,0.00039998,14]
[354570734,1740577878933,-873.23,0.00039998,14]
[354570735,1740577878944,-500.0,0.00039998,14]
[354570736,1740577878953,-1724.87,0.00039998,14]
[354570737,1740577878964,-500.0,0.00039998,14]
[354570738,1740577878974,-1541.1,0.00039998,14]
[354570739,1740577878983,-853.86,0.00039998,14]
[354570740,1740577878993,-591.19,0.00039998,14]
[354570741,1740577879002,-509.89068778,0.00039998,14]
[354570742,1740577879011,-500.0,0.00039998,14]
[354570743,1740577879021,-936.64,0.00039998,14]
[354570744,1740577879031,-1657.8,0.00039998,14]
[354570745,1740577879041,-1177.76,0.00039998,14]
[354570746,1740577879050,-738.79,0.00039998,14]
[354570747,1740577879061,-837.42,0.00039998,14]
[354570748,1740577879072,-1146.25,0.00039998,14]
[354570749,1740577879081,-1277.44,0.00039998,14]
[354570750,1740577879092,-703.97,0.00039998,14]
[354570751,1740577879102,-2708.98,0.00039998,14]
[354570752,1740577879112,-3028.36,0.00039998,14]
[354570753,1740577879123,-1805.32,0.00039998,14]
[354570754,1740577879133,-1102.48,0.00039998,7]
[354570755,1740577879144,-1567.51,0.00039998,14]
[354570756,1740577879155,-1014.94,0.00039998,14]
[354570757,1740577879165,-1959.78,0.00039998,14]
[354570758,1740577879175,-500.0,0.00039998,14]
[354570759,1740577879185,-790.21,0.00039998,14]
[354570760,1740577879195,-500.0,0.00039998,14]
[354570761,1740577879205,-2008.07,0.00039998,14]
[354570762,1740577879215,-2656.79,0.00039998,14]
[354570763,1740577879225,-2154.4,0.00039998,14]
[354570764,1740577879234,-2642.81,0.00039998,14]
[354570765,1740577879244,-2078.28,0.00039998,2]
[354570766,1740577879253,-740.95,0.00039998,14]
[354570767,1740577879264,-2542.35,0.00039998,14]
[354570768,1740577879274,-3356.39,0.00039998,14]
[354570769,1740577879284,-1029.43,0.00039998,14]
[354570770,1740577879294,-2197.92,0.00039998,14]
[354570771,1740577879304,-2782.04,0.00039998,14]
[354570772,1740577879314,-3480.26,0.00039998,14]
[354570773,1740577879324,-9064.03,0.00039998,14]
[354570774,1740577879335,-1790.25,0.00039998,14]
[354570775,1740577879345,-11996.38,0.00039998,14]
[354570776,1740577879355,-867.47,0.00039998,7]
[354570777,1740577879365,-7204.63,0.00039998,14]
[354570778,1740577879375,-1439.36,0.00039998,14]
[354570779,1740577879387,-1878.05,0.00039998,14]
[354570780,1740577879398,-2514.2,0.00039998,14]
[354570781,1740577879408,-10590.07,0.00039998,14]
[354570782,1740577879419,-7878.89,0.00039998,14]
[354570783,1740577879429,-2226.1,0.00039998,14]
[354570784,1740577879439,-963.01,0.00039998,14]
[354570785,1740577879450,-1335.47,0.00039998,14]
[354570786,1740577879460,-4068.29,0.00039998,14]
[354570787,1740577879471,-1524.81,0.00039998,14]
[354570788,1740577879481,-3119.68,0.00039998,14]
[354570789,1740577879721,-1042.94,0.00039998,14]
[354570790,1740577879733,-1414.93,0.00039998,14]
[354570791,1740577879743,-4810.19,0.00039998,14]
[354570792,1740577879752,-962.82,0.00039998,14]
[354570793,1740577879761,-3278.03,0.00039998,14]
[354570794,1740577879771,-2165.39,0.00039998,14]
[354570795,1740577879780,-500.0,0.00039998,14]
[354570796,1740577879793,-3365.18,0.00039998,14]
[354570797,1740577879803,-2946.79,0.00039998,14]
[354570798,1740577879813,-1224.1,0.00039998,14]
[354570799,1740577879824,-2232.04,0.00039998,14]
[354570800,1740577879835,-500.0,0.00039998,14]
[354570801,1740577879845,-500.0,0.00039998,14]
[354570802,1740577879855,-2616.03,0.00039998,14]
[354570803,1740577879866,-1658.36,0.00039998,14]
[354570804,1740577879878,-3658.55,0.00039998,14]
[354570805,1740577879887,-1516.09,0.00039998,14]
[354570806,1740577879897,-500.0,0.00039998,14]
[354570807,1740577879907,-781.58,0.00039998,14]
[354570808,1740577879917,-1606.71,0.00039998,14]
[354570809,1740577879926,-2312.99,0.00039998,14]
[354570810,1740577879936,-574.15,0.00039998,14]
[354570811,1740577879945,-500.0,0.00039998,14]
[354570812,1740577879955,-2047.04,0.00039998,14]
[354570813,1740577879966,-2467.14,0.00039998,14]
[354570814,1740577879975,-2266.99,0.00039998,14]
[354570815,1740577879985,-500.0,0.00039998,14]
[354570816,1740577879994,-904.58445208,0.00039999,5]
[354570817,1740577880004,-500.0,0.00039999,14]
[354570818,1740577880013,-500.0,0.00039999,14]
[354570819,1740577880023,-579.56,0.00039999,14]
[354570820,1740577880032,-500.0,0.00039999,14]
[354570821,1740577880041,-579.66750419,0.00039999,14]
[354570822,1740577880051,-748.27,0.00039999,14]
[354570823,1740577880060,-508.29,0.00039999,14]
[354570824,1740577880070,-560.37,0.00039999,14]
[354570825,1740577880080,-686.33,0.00039999,14]
[354570826,1740577880090,-500.0,0.00039999,14]
[354570827,1740577880099,-500.0,0.00039999,14]
[354570828,1740577880108,-500.0,0.00039999,14]
[354570829,1740577880118,-625.4,0.00039999,14]
[354570830,1740577880127,-500.0,0.00039999,14]
[354570831,1740577880137,-657.12,0.00039999,14]
[354570832,1740577880147,-798.41,0.00039999,14]
[354570833,1740577880156,-702.9,0.00039999,14]
[354570834,1740577880166,-656.36,0.00039999,14]
[354570835,1740577880175,-202.96,0.00039999,14]
[354570836,1740577880184,-500.0,0.00039999,14]
[354570837,1740577880194,-500.0,0.00039999,14]
[354570838,1740577880203,-500.0,0.00039999,14]
[354570839,1740577880213,-739.71,0.00039999,14]
[354570840,1740577880222,-500.0,0.00039999,14]
[354570841,1740577880231,-652.49,0.00039999,14]
[354570842,1740577880241,-1187.38,0.00039999,14]
[354570843,1740577880250,-500.0,0.00039999,14]
[354570844,1740577880260,-500.0,0.00039999,14]
[354570845,1740577880270,-1152.89,0.00039999,14]
[354570846,1740577880279,-500.0,0.00039999,14]
[354570847,1740577880289,-275.31827833,0.00039999,14]
[354570848,1740577880299,-500.0,0.00039999,14]
[354570849,1740577880308,-500.0,0.00039999,14]
[354570850,1740577880318,-500.0,0.00039999,14]
[354570851,1740577880329,-519.1,0.00039999,14]
[354570852,1740577880339,-500.0,0.00039999,14]
[354570853,1740577880348,-500.0,0.00039999,14]
[354570854,1740577880358,-1000.36,0.00039999,14]
[354570855,1740577880367,-500.0,0.00039999,14]
[354570856,1740577880377,-1053.89,0.00039999,14]
[354570857,1740577880387,-500.0,0.00039999,14]
[354570858,1740577880397,-500.0,0.00039999,14]
[354570859,1740577880406,-855.35,0.00039999,14]
[354570860,1740577880415,-500.0,0.00039999,14]
[354570861,1740577880425,-1230.63,0.00039999,14]
[354570862,1740577880437,-713.14,0.00039999,14]
[354570863,1740577880447,-1310.18,0.00039999,14]
[354570864,1740577880456,-500.0,0.00039999,14]
[354570865,1740577880465,-500.0,0.00039999,14]
[354570866,1740577880475,-1037.5,0.00039999,14]
[354570867,1740577880484,-525.66,0.00039999,14]
[354570868,1740577880494,-750.54,0.00039999,14]
[354570869,1740577880503,-644.33,0.00039999,14]
[354570870,1740577880513,-500.0,0.00039999,14]
[354570871,1740577880523,-720.23,0.00039999,14]
[354570872,1740577880532,-1469.38,0.00039999,14]
[354570873,1740577880542,-500.0,0.00039999,14]
[354570874,1740577880551,-676.4,0.00039999,14]
[354570875,1740577880560,-552.22,0.00039999,14]
[354570876,1740577880570,-583.07,0.00039999,14]
[354570877,1740577880580,-819.23,0.00039999,14]
[354570878,1740577880590,-1594.23,0.00039999,14]
[354570879,1740577880600,-1290.54,0.00039999,14]
[354570880,1740577880610,-628.18,0.00039999,14]
[354570881,1740577880620,-2041.57,0.00039999,14]
[354570882,1740577880630,-500.0,0.00039999,14]
[354570883,1740577880641,-1272.67,0.00039999,14]
[354570884,1740577880650,-1295.92,0.00039999,14]
[354570885,1740577880660,-530.49,0.00039999,14]
[354570886,1740577880671,-972.66,0.00039999,14]
[354570887,1740577880680,-1146.34,0.00039999,14]
[354570888,1740577880689,-816.62,0.00039999,14]
[354570889,1740577880698,-1266.49,0.00039999,14]
[354570890,1740577880708,-1144.84,0.00039999,14]
[354570891,1740577880717,-500.0,0.00039999,14]
[354570892,1740577880727,-557.37,0.00039999,14]
[354570893,1740577880736,-1296.84,0.00039999,14]
[354570894,1740577880745,-500.0,0.00039999,14]
[354570895,1740577880755,-1002.69,0.00039999,14]
[354570896,1740577880764,-2093.77,0.00039999,14]
[354570897,1740577880773,-513.61,0.00039999,14]
[354570898,1740577880782,-500.0,0.00039999,14]
[354570899,1740577880796,-882.04,0.00039999,14]
[354570900,1740577880805,-709.78,0.00039999,14]
[354570901,1740577880815,-500.0,0.00039999,14]
[354570902,1740577880824,-1026.63,0.00039999,14]
[354570903,1740577880835,-1813.28,0.00039999,14]
[354570904,1740577880845,-500.0,0.00039999,14]
[354570905,1740577880854,-595.43948146,0.00039999,14]
[354570906,1740577881202,-197.93051854,0.00039999,14]
[354570907,1740577881211,-176.61948146,0.00039999,14]
[354570908,1740577881339,-323.38051854,0.00039999,14]
[354570909,1740577881348,-190.82497494,0.00039999,14]
[354570910,1740577881360,-1371.9392316,0.00039999,14]
[354570911,1740577881371,-1084.72579346,0.00039999,14]
[354570912,1740577881381,-604.0968747,0.00039999,14]
[354570913,1740577881393,-1161.17733184,0.00039999,14]
[354570914,1740577881413,-400.75266816,0.00039999,14]
[354570915,1740577881423,-1075.83514911,0.00039999,14]
[354570916,1740577881435,-248.56485089,0.00039999,14]